[Event "Titled Tuesday Blitz January 11 2022"]
[White "Pakleza, Zbigniew"]
[Black "Manukyan, Artyom"]
[WhiteFideId "1119290"]
[BlackFideId "13305786"]
[WhiteElo "2467"]
[BlackElo "2034"]
[Result "1-0"]
[Round "11"]
[TimeControl "180+1"]
[Date "2022.01.11"]
[WhiteClock "0:00:10"]
[BlackClock "0:00:09"]

1. d4 {[%clk 0:03:00]}  d5 {[%clk 0:02:58]} 2. Bf4 {[%clk 0:02:59]}  Nf6 {[%clk 0:02:58]} 3. e3 {[%clk 0:02:59]}  c5 {[%clk 0:02:46]} 4. c3 {[%clk 0:03:00]}  Nc6 {[%clk 0:02:46]} 5. Nd2 {[%clk 0:03:00]}  Bg4 {[%clk 0:02:46]} 6. Qb3 {[%clk 0:02:58]}  Qd7 {[%clk 0:02:44]} 7. Ngf3 {[%clk 0:02:56]}  cxd4 {[%clk 0:02:44]} 8. cxd4 {[%clk 0:02:52]}  a6 {[%clk 0:02:44]} 9. Ne5 {[%clk 0:02:50]}  Nxe5 {[%clk 0:02:42]} 10. dxe5 {[%clk 0:02:50]}  Ne4 {[%clk 0:02:39]} 11. Nxe4 {[%clk 0:02:38]}  dxe4 {[%clk 0:02:40]} 12. Bc4 {[%clk 0:02:23]}  e6 {[%clk 0:02:34]} 13. h3 {[%clk 0:02:15]}  Bh5 {[%clk 0:02:29]} 14. g4 {[%clk 0:02:07]}  Bg6 {[%clk 0:02:27]} 15. O-O {[%clk 0:02:03]}  Bc5 {[%clk 0:02:24]} 16. Rac1 {[%clk 0:01:40]}  Qe7 {[%clk 0:02:17]} 17. Qa4+ {[%clk 0:01:31]}  Kf8 {[%clk 0:02:13]} 18. Rfd1 {[%clk 0:01:17]}  h5 {[%clk 0:02:05]} 19. g5 {[%clk 0:01:17]}  Kg8 {[%clk 0:02:00]} 20. Be2 {[%clk 0:01:05]}  b5 {[%clk 0:01:25]} 21. Bxb5 {[%clk 0:00:58]}  Kh7 {[%clk 0:01:25]} 22. Bf1 {[%clk 0:00:55]}  a5 {[%clk 0:01:14]} 23. Rd7 {[%clk 0:00:41]}  Qf8 {[%clk 0:01:13]} 24. Bg2 {[%clk 0:00:35]}  Rb8 {[%clk 0:00:36]} 25. Qc2 {[%clk 0:00:35]}  Qe8 {[%clk 0:00:29]} 26. Rdd1 {[%clk 0:00:30]}  Rc8 {[%clk 0:00:29]} 27. Bxe4 {[%clk 0:00:28]}  Qe7 {[%clk 0:00:15]} 28. Bxg6+ {[%clk 0:00:27]}  fxg6 {[%clk 0:00:16]} 29. Qd2 {[%clk 0:00:25]}  Rhf8 {[%clk 0:00:15]} 30. Qd7 {[%clk 0:00:22]}  Qxd7 {[%clk 0:00:12]} 31. Rxd7 {[%clk 0:00:22]}  Bb4 {[%clk 0:00:12]} 32. Rxc8 {[%clk 0:00:19]}  Rxc8 {[%clk 0:00:13]} 33. a3 {[%clk 0:00:18]}  Bf8 {[%clk 0:00:13]} 34. Ra7 {[%clk 0:00:15]}  Rc1+ {[%clk 0:00:12]} 35. Kg2 {[%clk 0:00:15]}  Rb1 {[%clk 0:00:13]} 36. Rxa5 {[%clk 0:00:15]}  Rxb2 {[%clk 0:00:13]} 37. Ra6 {[%clk 0:00:16]}  Bc5 {[%clk 0:00:11]} 38. a4 {[%clk 0:00:15]}  Bb4 {[%clk 0:00:11]} 39. Rxe6 {[%clk 0:00:12]}  h4 {[%clk 0:00:11]} 40. Rb6 {[%clk 0:00:12]}  Bc3 {[%clk 0:00:08]} 41. Rxb2 {[%clk 0:00:11]}  Bxb2 {[%clk 0:00:09]} 42. a5 {[%clk 0:00:10]} 1-0


[Site "https://www.chess.com"]

[Event "Titled Tuesday Blitz January 11 2022"]
[White "Papp, Petra"]
[Black "Punin, Andrii"]
[WhiteFideId "739049"]
[BlackFideId "14112639"]
[WhiteElo "2259"]
[BlackElo "2357"]
[Result "0-1"]
[Round "11"]
[TimeControl "180+1"]
[Date "2022.01.11"]
[WhiteClock "0:00:03"]
[BlackClock "0:00:13"]

1. d4 {[%clk 0:03:00]}  Nf6 {[%clk 0:02:59]} 2. Nf3 {[%clk 0:02:56]}  d5 {[%clk 0:02:59]} 3. c4 {[%clk 0:02:53]}  e6 {[%clk 0:02:59]} 4. g3 {[%clk 0:02:52]}  dxc4 {[%clk 0:02:57]} 5. Bg2 {[%clk 0:02:50]}  c6 {[%clk 0:02:56]} 6. O-O {[%clk 0:02:49]}  b5 {[%clk 0:02:56]} 7. Ne5 {[%clk 0:02:44]}  Bb7 {[%clk 0:02:55]} 8. a4 {[%clk 0:02:43]}  a6 {[%clk 0:02:55]} 9. b3 {[%clk 0:02:35]}  cxb3 {[%clk 0:02:54]} 10. Qxb3 {[%clk 0:02:33]}  Be7 {[%clk 0:02:53]} 11. Nc3 {[%clk 0:02:32]}  O-O {[%clk 0:02:34]} 12. Rd1 {[%clk 0:02:24]}  Nfd7 {[%clk 0:02:31]} 13. Bb2 {[%clk 0:01:51]}  Qb6 {[%clk 0:02:19]} 14. Ne4 {[%clk 0:01:39]}  Nxe5 {[%clk 0:02:13]} 15. dxe5 {[%clk 0:01:38]}  c5 {[%clk 0:02:12]} 16. Nd6 {[%clk 0:01:32]}  Bxg2 {[%clk 0:02:11]} 17. Kxg2 {[%clk 0:01:31]}  Bxd6 {[%clk 0:01:57]} 18. exd6 {[%clk 0:01:20]}  Nd7 {[%clk 0:01:55]} 19. h4 {[%clk 0:01:02]}  Qc6+ {[%clk 0:01:53]} 20. Kh2 {[%clk 0:00:57]}  e5 {[%clk 0:01:45]} 21. h5 {[%clk 0:00:51]}  h6 {[%clk 0:01:45]} 22. Qe3 {[%clk 0:00:29]}  f6 {[%clk 0:01:38]} 23. Rac1 {[%clk 0:00:21]}  c4 {[%clk 0:01:36]} 24. Qd2 {[%clk 0:00:16]}  Kh8 {[%clk 0:01:33]} 25. a5 {[%clk 0:00:15]}  Rac8 {[%clk 0:01:26]} 26. f3 {[%clk 0:00:14]}  Rfd8 {[%clk 0:01:21]} 27. Qb4 {[%clk 0:00:14]}  Nc5 {[%clk 0:01:16]} 28. Kg2 {[%clk 0:00:13]}  Rxd6 {[%clk 0:01:07]} 29. Rxd6 {[%clk 0:00:12]}  Qxd6 {[%clk 0:01:07]} 30. Ba3 {[%clk 0:00:12]}  Qc7 {[%clk 0:01:04]} 31. Rd1 {[%clk 0:00:12]}  Nb7 {[%clk 0:00:56]} 32. Qc3 {[%clk 0:00:12]}  Nxa5 {[%clk 0:00:42]} 33. Rd6 {[%clk 0:00:10]}  Nc6 {[%clk 0:00:38]} 34. Qd2 {[%clk 0:00:09]}  b4 {[%clk 0:00:29]} 35. Rd7 {[%clk 0:00:06]}  Rd8 {[%clk 0:00:24]} 36. Rxc7 {[%clk 0:00:04]}  Rxd2 {[%clk 0:00:23]} 37. Rxc6 {[%clk 0:00:04]}  bxa3 {[%clk 0:00:23]} 38. Rxc4 {[%clk 0:00:04]}  Rxe2+ {[%clk 0:00:22]} 39. Kh3 {[%clk 0:00:05]}  a2 {[%clk 0:00:19]} 40. Ra4 {[%clk 0:00:05]}  Kg8 {[%clk 0:00:18]} 41. Kg4 {[%clk 0:00:05]}  Kf7 {[%clk 0:00:18]} 42. Rxa6 {[%clk 0:00:05]}  Rf2 {[%clk 0:00:18]} 43. f4 {[%clk 0:00:05]}  e4 {[%clk 0:00:17]} 44. Kf5 {[%clk 0:00:04]}  e3 {[%clk 0:00:17]} 45. Ra7+ {[%clk 0:00:05]}  Ke8 {[%clk 0:00:17]} 46. Ke6 {[%clk 0:00:05]}  Kd8 {[%clk 0:00:17]} 47. Ra8+ {[%clk 0:00:01]}  Kc7 {[%clk 0:00:17]} 48. Ra7+ {[%clk 0:00:02]}  Kb6 {[%clk 0:00:17]} 49. Ra3 {[%clk 0:00:03]}  Rd2 {[%clk 0:00:15]} 50. Kf5 {[%clk 0:00:02]}  e2 {[%clk 0:00:15]} 51. Rb3+ {[%clk 0:00:02]}  Ka5 {[%clk 0:00:14]} 52. Ra3+ {[%clk 0:00:02]}  Kb4 {[%clk 0:00:14]} 53. Re3 {[%clk 0:00:03]}  a1=Q {[%clk 0:00:13]} 54. Kg6 {[%clk 0:00:04]}  Qd4 {[%clk 0:00:13]} 55. Re6 {[%clk 0:00:03]}  Qd3+ {[%clk 0:00:13]} 0-1


[Site "https://www.chess.com"]

[Event "Titled Tuesday Blitz January 11 2022"]
[White "Perez Gormaz, Matias"]
[Black "Reprintsev, Alexander"]
[WhiteFideId "3406342"]
[BlackFideId "14100541"]
[WhiteElo "2352"]
[BlackElo "2126"]
[Result "0-1"]
[Round "11"]
[TimeControl "180+1"]
[Date "2022.01.11"]
[WhiteClock "0:00:06"]
[BlackClock "0:00:13"]

1. e4 {[%clk 0:03:00]}  d5 {[%clk 0:02:59]} 2. exd5 {[%clk 0:03:00]}  Qxd5 {[%clk 0:02:58]} 3. Nc3 {[%clk 0:03:00]}  Qa5 {[%clk 0:02:58]} 4. d4 {[%clk 0:03:01]}  Nf6 {[%clk 0:02:58]} 5. Bd2 {[%clk 0:03:02]}  Bg4 {[%clk 0:02:58]} 6. f3 {[%clk 0:03:02]}  Bd7 {[%clk 0:02:58]} 7. Bc4 {[%clk 0:02:58]}  Qb6 {[%clk 0:02:58]} 8. Nge2 {[%clk 0:02:58]}  e6 {[%clk 0:02:50]} 9. O-O {[%clk 0:02:54]}  Be7 {[%clk 0:02:50]} 10. Kh1 {[%clk 0:02:54]}  O-O {[%clk 0:02:49]} 11. a4 {[%clk 0:02:51]}  a5 {[%clk 0:02:49]} 12. Bb3 {[%clk 0:02:51]}  Qa6 {[%clk 0:02:41]} 13. Nf4 {[%clk 0:02:45]}  Rd8 {[%clk 0:02:35]} 14. Qe1 {[%clk 0:02:42]}  Nc6 {[%clk 0:02:29]} 15. Nb5 {[%clk 0:02:40]}  Rac8 {[%clk 0:02:22]} 16. d5 {[%clk 0:02:10]}  exd5 {[%clk 0:02:17]} 17. Nxd5 {[%clk 0:02:11]}  Nxd5 {[%clk 0:02:16]} 18. Bxd5 {[%clk 0:02:12]}  Bf6 {[%clk 0:02:02]} 19. Bf4 {[%clk 0:01:57]}  Re8 {[%clk 0:01:53]} 20. Qg3 {[%clk 0:01:54]}  Be5 {[%clk 0:01:50]} 21. Rad1 {[%clk 0:01:49]}  Re7 {[%clk 0:01:24]} 22. Bxc6 {[%clk 0:01:42]}  Bxf4 {[%clk 0:01:18]} 23. Qxf4 {[%clk 0:01:42]}  Bxc6 {[%clk 0:01:05]} 24. Nd4 {[%clk 0:01:30]}  Bd7 {[%clk 0:00:56]} 25. b3 {[%clk 0:01:29]}  c5 {[%clk 0:00:52]} 26. Nf5 {[%clk 0:01:27]}  Bxf5 {[%clk 0:00:52]} 27. Qxf5 {[%clk 0:01:28]}  Qe6 {[%clk 0:00:49]} 28. Qh5 {[%clk 0:01:04]}  g6 {[%clk 0:00:47]} 29. Qg5 {[%clk 0:01:04]}  b6 {[%clk 0:00:41]} 30. h4 {[%clk 0:01:02]}  Rce8 {[%clk 0:00:34]} 31. Rf2 {[%clk 0:00:32]}  Qe3 {[%clk 0:00:32]} 32. Qxe3 {[%clk 0:00:32]}  Rxe3 {[%clk 0:00:32]} 33. Rd6 {[%clk 0:00:33]}  R8e6 {[%clk 0:00:31]} 34. Rfd2 {[%clk 0:00:32]}  Kg7 {[%clk 0:00:25]} 35. Kg1 {[%clk 0:00:31]}  Kf6 {[%clk 0:00:19]} 36. Kf2 {[%clk 0:00:32]}  Rc3 {[%clk 0:00:16]} 37. g4 {[%clk 0:00:28]}  h6 {[%clk 0:00:15]} 38. f4 {[%clk 0:00:22]}  c4 {[%clk 0:00:14]} 39. g5+ {[%clk 0:00:05]}  hxg5 {[%clk 0:00:14]} 40. hxg5+ {[%clk 0:00:06]}  Kf5 {[%clk 0:00:14]} 41. R6d5+ {[%clk 0:00:01]}  Kxf4 {[%clk 0:00:12]} 42. R5d4+ {[%clk 0:00:01]}  Re4 {[%clk 0:00:12]} 43. Rxe4+ {[%clk 0:00:02]}  Kxe4 {[%clk 0:00:12]} 44. Re2+ {[%clk 0:00:01]}  Kf5 {[%clk 0:00:13]} 45. bxc4 {[%clk 0:00:01]}  Kxg5 {[%clk 0:00:12]} 46. Re7 {[%clk 0:00:02]}  f5 {[%clk 0:00:11]} 47. Rc7 {[%clk 0:00:02]}  Rxc2+ {[%clk 0:00:11]} 48. Ke3 {[%clk 0:00:03]}  Ra2 {[%clk 0:00:11]} 49. Rc6 {[%clk 0:00:03]}  Ra3+ {[%clk 0:00:11]} 50. Kd4 {[%clk 0:00:02]}  Rxa4 {[%clk 0:00:11]} 51. Rxb6 {[%clk 0:00:03]}  f4 {[%clk 0:00:11]} 52. Rb1 {[%clk 0:00:04]}  Kf5 {[%clk 0:00:11]} 53. Rb8 {[%clk 0:00:04]}  g5 {[%clk 0:00:11]} 54. Rf8+ {[%clk 0:00:04]}  Kg4 {[%clk 0:00:11]} 55. Kd5 {[%clk 0:00:05]}  Ra2 {[%clk 0:00:11]} 56. c5 {[%clk 0:00:06]}  Rd2+ {[%clk 0:00:12]} 57. Kc4 {[%clk 0:00:05]}  Rc2+ {[%clk 0:00:13]} 58. Kb5 {[%clk 0:00:05]}  f3 {[%clk 0:00:13]} 59. Kxa5 {[%clk 0:00:05]}  Rxc5+ {[%clk 0:00:13]} 60. Kb6 {[%clk 0:00:06]}  Rf5 {[%clk 0:00:13]} 0-1


[Site "https://www.chess.com"]

[Event "Titled Tuesday Blitz January 11 2022"]
[White "Piorun, Kacper"]
[Black "Sadhwani, Raunak"]
[WhiteFideId "1130420"]
[BlackFideId "35093487"]
[WhiteElo "2571"]
[BlackElo "2616"]
[Result "1-0"]
[Round "11"]
[TimeControl "180+1"]
[Date "2022.01.11"]
[WhiteClock "0:01:26"]
[BlackClock "0:01:37"]

1. Nf3 {[%clk 0:03:00]}  d5 {[%clk 0:02:59]} 2. g3 {[%clk 0:02:59]}  Nc6 {[%clk 0:02:59]} 3. Bg2 {[%clk 0:03:00]}  e5 {[%clk 0:02:59]} 4. d3 {[%clk 0:02:54]}  f6 {[%clk 0:02:59]} 5. O-O {[%clk 0:02:52]}  Be6 {[%clk 0:02:58]} 6. c4 {[%clk 0:02:43]}  dxc4 {[%clk 0:02:55]} 7. Qa4 {[%clk 0:02:43]}  cxd3 {[%clk 0:02:50]} 8. Rd1 {[%clk 0:02:43]}  Bd6 {[%clk 0:02:44]} 9. Rxd3 {[%clk 0:02:38]}  Ne7 {[%clk 0:02:44]} 10. Nc3 {[%clk 0:02:37]}  O-O {[%clk 0:02:40]} 11. Ne4 {[%clk 0:02:32]}  Bf7 {[%clk 0:02:26]} 12. Be3 {[%clk 0:02:26]}  Nd5 {[%clk 0:02:24]} 13. Rad1 {[%clk 0:02:20]}  Nxe3 {[%clk 0:02:23]} 14. fxe3 {[%clk 0:02:20]}  Qe7 {[%clk 0:02:13]} 15. Nxd6 {[%clk 0:02:17]}  cxd6 {[%clk 0:02:14]} 16. Rxd6 {[%clk 0:02:18]}  Rfd8 {[%clk 0:02:13]} 17. Rxd8+ {[%clk 0:01:49]}  Qxd8 {[%clk 0:02:14]} 18. Rxd8+ {[%clk 0:01:49]}  Rxd8 {[%clk 0:02:13]} 19. h4 {[%clk 0:01:47]}  Be6 {[%clk 0:02:08]} 20. Qb5 {[%clk 0:01:46]}  Rd7 {[%clk 0:02:07]} 21. Ne1 {[%clk 0:01:43]}  h5 {[%clk 0:02:00]} 22. Bxc6 {[%clk 0:01:42]}  bxc6 {[%clk 0:02:00]} 23. Qxc6 {[%clk 0:01:42]}  Bg4 {[%clk 0:02:01]} 24. Nd3 {[%clk 0:01:41]}  Rd8 {[%clk 0:01:57]} 25. Kf2 {[%clk 0:01:40]}  Rc8 {[%clk 0:01:56]} 26. Qd5+ {[%clk 0:01:39]}  Kh8 {[%clk 0:01:55]} 27. Nc5 {[%clk 0:01:39]}  Rb8 {[%clk 0:01:55]} 28. b3 {[%clk 0:01:38]}  Rf8 {[%clk 0:01:53]} 29. Qd6 {[%clk 0:01:36]}  Re8 {[%clk 0:01:53]} 30. Qc7 {[%clk 0:01:35]}  Kh7 {[%clk 0:01:49]} 31. Qxa7 {[%clk 0:01:35]}  Rd8 {[%clk 0:01:50]} 32. Qa5 {[%clk 0:01:34]}  Rd1 {[%clk 0:01:49]} 33. Qc3 {[%clk 0:01:34]}  Rh1 {[%clk 0:01:49]} 34. Kg2 {[%clk 0:01:28]}  Rh3 {[%clk 0:01:36]} 35. a4 {[%clk 0:01:27]}  g5 {[%clk 0:01:36]} 36. hxg5 {[%clk 0:01:26]}  h4 {[%clk 0:01:37]} 37. gxh4 {[%clk 0:01:26]} 1-0


[Site "https://www.chess.com"]

[Event "Titled Tuesday Blitz January 11 2022"]
[White "Risteski, Emil"]
[Black "Csonka, Balazs"]
[WhiteFideId "15005267"]
[BlackFideId "742910"]
[WhiteElo "2070"]
[BlackElo "2404"]
[Result "1/2-1/2"]
[Round "11"]
[TimeControl "180+1"]
[Date "2022.01.11"]
[WhiteClock "0:00:13"]
[BlackClock "0:00:04"]

1. e4 {[%clk 0:03:00]}  e6 {[%clk 0:02:59]} 2. d3 {[%clk 0:02:59]}  c5 {[%clk 0:02:53]} 3. f4 {[%clk 0:02:58]}  Nc6 {[%clk 0:02:51]} 4. Be2 {[%clk 0:02:59]}  g6 {[%clk 0:02:49]} 5. Nf3 {[%clk 0:02:59]}  Bg7 {[%clk 0:02:50]} 6. O-O {[%clk 0:03:00]}  Nge7 {[%clk 0:02:50]} 7. Qe1 {[%clk 0:03:00]}  f5 {[%clk 0:02:44]} 8. Kh1 {[%clk 0:02:59]}  O-O {[%clk 0:02:43]} 9. Bd1 {[%clk 0:02:57]}  b6 {[%clk 0:02:39]} 10. c3 {[%clk 0:02:56]}  Bb7 {[%clk 0:02:39]} 11. Na3 {[%clk 0:02:55]}  a6 {[%clk 0:02:11]} 12. Nc4 {[%clk 0:02:20]}  Qc7 {[%clk 0:02:02]} 13. e5 {[%clk 0:02:14]}  Nc8 {[%clk 0:01:49]} 14. h4 {[%clk 0:01:50]}  h5 {[%clk 0:01:38]} 15. Ng5 {[%clk 0:01:47]}  b5 {[%clk 0:01:30]} 16. Nd2 {[%clk 0:01:44]}  Re8 {[%clk 0:01:26]} 17. Bf3 {[%clk 0:01:43]}  d6 {[%clk 0:01:15]} 18. Nb3 {[%clk 0:00:51]}  c4 {[%clk 0:00:52]} 19. dxc4 {[%clk 0:00:37]}  bxc4 {[%clk 0:00:50]} 20. Nd4 {[%clk 0:00:36]}  Nxd4 {[%clk 0:00:35]} 21. cxd4 {[%clk 0:00:36]}  Bxf3 {[%clk 0:00:29]} 22. Rxf3 {[%clk 0:00:36]}  d5 {[%clk 0:00:29]} 23. b3 {[%clk 0:00:35]}  Nb6 {[%clk 0:00:22]} 24. Bd2 {[%clk 0:00:35]}  Qd7 {[%clk 0:00:13]} 25. Ba5 {[%clk 0:00:33]}  Rab8 {[%clk 0:00:13]} 26. Rc1 {[%clk 0:00:31]}  Rec8 {[%clk 0:00:12]} 27. Rfc3 {[%clk 0:00:27]}  cxb3 {[%clk 0:00:07]} 28. Bxb6 {[%clk 0:00:20]}  Rxc3 {[%clk 0:00:06]} 29. Qxc3 {[%clk 0:00:21]}  Rxb6 {[%clk 0:00:05]} 30. Qc8+ {[%clk 0:00:21]}  Qxc8 {[%clk 0:00:05]} 31. Rxc8+ {[%clk 0:00:22]}  Bf8 {[%clk 0:00:05]} 32. axb3 {[%clk 0:00:22]}  Kg7 {[%clk 0:00:05]} 33. Rc7+ {[%clk 0:00:20]}  Kg8 {[%clk 0:00:05]} 34. Ra7 {[%clk 0:00:19]}  Bh6 {[%clk 0:00:03]} 35. Kh2 {[%clk 0:00:15]}  Bxg5 {[%clk 0:00:04]} 36. hxg5 {[%clk 0:00:16]}  Rxb3 {[%clk 0:00:03]} 37. Rxa6 {[%clk 0:00:17]}  Kf7 {[%clk 0:00:03]} 38. Ra7+ {[%clk 0:00:17]}  Kf8 {[%clk 0:00:04]} 39. Ra8+ {[%clk 0:00:17]}  Kf7 {[%clk 0:00:04]} 40. Ra7+ {[%clk 0:00:17]}  Kf8 {[%clk 0:00:04]} 41. Ra4 {[%clk 0:00:16]}  Rd3 {[%clk 0:00:04]} 42. g3 {[%clk 0:00:15]}  Rd2+ {[%clk 0:00:04]} 43. Kh3 {[%clk 0:00:15]}  Rd3 {[%clk 0:00:04]} 44. Kg2 {[%clk 0:00:14]}  Rd2+ {[%clk 0:00:04]} 45. Kf3 {[%clk 0:00:14]}  Kf7 {[%clk 0:00:05]} 46. Ra7+ {[%clk 0:00:11]}  Kf8 {[%clk 0:00:05]} 47. Ra4 {[%clk 0:00:12]}  Kf7 {[%clk 0:00:05]} 48. Ke3 {[%clk 0:00:12]}  Rg2 {[%clk 0:00:05]} 49. Ra7+ {[%clk 0:00:12]}  Kf8 {[%clk 0:00:04]} 50. Kf3 {[%clk 0:00:13]}  Rd2 {[%clk 0:00:05]} 51. Ra6 {[%clk 0:00:12]}  Kf7 {[%clk 0:00:04]} 52. Ke3 {[%clk 0:00:11]}  Rg2 {[%clk 0:00:04]} 53. Kf3 {[%clk 0:00:11]}  Rd2 {[%clk 0:00:04]} 54. Ra4 {[%clk 0:00:12]}  Rd3+ {[%clk 0:00:03]} 55. Kf2 {[%clk 0:00:12]}  Rd2+ {[%clk 0:00:03]} 56. Ke3 {[%clk 0:00:12]}  Rg2 {[%clk 0:00:03]} 57. Kf3 {[%clk 0:00:13]}  Rd2 {[%clk 0:00:04]} 1/2-1/2


[Site "https://www.chess.com"]

[Event "Titled Tuesday Blitz January 11 2022"]
[White "Santos Ruiz, Miguel"]
[Black "Devaev, Alexander"]
[WhiteFideId "22291482"]
[BlackFideId "4169395"]
[WhiteElo "2486"]
[BlackElo "2185"]
[Result "1-0"]
[Round "11"]
[TimeControl "180+1"]
[Date "2022.01.11"]
[WhiteClock "0:00:22"]
[BlackClock "0:00:01"]

1. d4 {[%clk 0:03:00]}  Nf6 {[%clk 0:02:55]} 2. Nf3 {[%clk 0:03:01]}  e6 {[%clk 0:02:56]} 3. Bf4 {[%clk 0:03:01]}  d5 {[%clk 0:02:54]} 4. e3 {[%clk 0:03:01]}  Bd6 {[%clk 0:02:55]} 5. Nbd2 {[%clk 0:03:01]}  Qe7 {[%clk 0:02:56]} 6. Bd3 {[%clk 0:03:01]}  Nbd7 {[%clk 0:02:56]} 7. Bxd6 {[%clk 0:02:57]}  Qxd6 {[%clk 0:02:55]} 8. c4 {[%clk 0:02:57]}  c6 {[%clk 0:02:50]} 9. O-O {[%clk 0:02:57]}  O-O {[%clk 0:02:45]} 10. e4 {[%clk 0:02:57]}  dxe4 {[%clk 0:02:41]} 11. Nxe4 {[%clk 0:02:58]}  Nxe4 {[%clk 0:02:41]} 12. Bxe4 {[%clk 0:02:59]}  c5 {[%clk 0:02:27]} 13. dxc5 {[%clk 0:02:54]}  Qxc5 {[%clk 0:02:25]} 14. Qe2 {[%clk 0:02:50]}  Nf6 {[%clk 0:02:21]} 15. Bc2 {[%clk 0:02:50]}  b6 {[%clk 0:02:18]} 16. Rad1 {[%clk 0:02:46]}  Bb7 {[%clk 0:02:19]} 17. b3 {[%clk 0:02:45]}  Rac8 {[%clk 0:02:17]} 18. Rd2 {[%clk 0:02:44]}  Rfe8 {[%clk 0:02:02]} 19. Rfd1 {[%clk 0:02:44]}  h6 {[%clk 0:01:53]} 20. h3 {[%clk 0:02:43]}  a6 {[%clk 0:01:49]} 21. Ne5 {[%clk 0:02:43]}  b5 {[%clk 0:01:40]} 22. Rd7 {[%clk 0:02:07]}  Nxd7 {[%clk 0:01:15]} 23. Rxd7 {[%clk 0:02:06]}  Re7 {[%clk 0:00:56]} 24. Qd3 {[%clk 0:02:00]}  f5 {[%clk 0:00:55]} 25. Rd8+ {[%clk 0:01:38]}  Kh7 {[%clk 0:00:47]} 26. Rxc8 {[%clk 0:01:23]}  Bxc8 {[%clk 0:00:45]} 27. Qg3 {[%clk 0:01:21]}  g5 {[%clk 0:00:37]} 28. h4 {[%clk 0:01:17]}  Rg7 {[%clk 0:00:29]} 29. hxg5 {[%clk 0:01:11]}  Rxg5 {[%clk 0:00:30]} 30. Qf4 {[%clk 0:01:08]}  Bb7 {[%clk 0:00:30]} 31. g3 {[%clk 0:01:04]}  bxc4 {[%clk 0:00:29]} 32. Nxc4 {[%clk 0:01:00]}  Qd5 {[%clk 0:00:25]} 33. Kf1 {[%clk 0:00:57]}  Qh1+ {[%clk 0:00:19]} 34. Ke2 {[%clk 0:00:57]}  Qd5 {[%clk 0:00:20]} 35. Ne3 {[%clk 0:00:53]}  Qc6 {[%clk 0:00:17]} 36. Qe5 {[%clk 0:00:51]}  Qf3+ {[%clk 0:00:13]} 37. Ke1 {[%clk 0:00:50]}  Rg7 {[%clk 0:00:11]} 38. g4 {[%clk 0:00:50]}  Qh1+ {[%clk 0:00:09]} 39. Kd2 {[%clk 0:00:48]}  Rd7+ {[%clk 0:00:08]} 40. Bd3 {[%clk 0:00:42]}  Qe4 {[%clk 0:00:08]} 41. Qc3 {[%clk 0:00:36]}  Qc6 {[%clk 0:00:05]} 42. gxf5 {[%clk 0:00:35]}  Qxc3+ {[%clk 0:00:04]} 43. Kxc3 {[%clk 0:00:35]}  Rc7+ {[%clk 0:00:04]} 44. Kd4 {[%clk 0:00:35]}  exf5 {[%clk 0:00:05]} 45. Nxf5 {[%clk 0:00:32]}  h5 {[%clk 0:00:03]} 46. b4 {[%clk 0:00:31]}  Bc8 {[%clk 0:00:02]} 47. Nd6+ {[%clk 0:00:31]}  Kh6 {[%clk 0:00:02]} 48. a4 {[%clk 0:00:27]}  h4 {[%clk 0:00:02]} 49. b5 {[%clk 0:00:27]}  axb5 {[%clk 0:00:03]} 50. axb5 {[%clk 0:00:28]}  h3 {[%clk 0:00:03]} 51. b6 {[%clk 0:00:28]}  Re7 {[%clk 0:00:03]} 52. Nxc8 {[%clk 0:00:27]}  Rd7+ {[%clk 0:00:02]} 53. Kc3 {[%clk 0:00:26]}  h2 {[%clk 0:00:01]} 54. Be4 {[%clk 0:00:26]}  Re7 {[%clk 0:00:01]} 55. Bg2 {[%clk 0:00:22]} 1-0


[Site "https://www.chess.com"]

[Event "Titled Tuesday Blitz January 11 2022"]
[White "Supatashvili, Khvicha"]
[Black "Maximov, Dmitry"]
[WhiteFideId "13600664"]
[BlackFideId "14105659"]
[WhiteElo "2703"]
[BlackElo "2494"]
[Result "1/2-1/2"]
[Round "11"]
[TimeControl "180+1"]
[Date "2022.01.11"]
[WhiteClock "0:00:10"]
[BlackClock "0:00:23"]

1. d4 {[%clk 0:03:00]}  Nf6 {[%clk 0:02:59]} 2. c4 {[%clk 0:02:59]}  g6 {[%clk 0:03:00]} 3. Nc3 {[%clk 0:02:59]}  Bg7 {[%clk 0:03:00]} 4. e4 {[%clk 0:02:58]}  O-O {[%clk 0:03:01]} 5. Be2 {[%clk 0:02:59]}  d6 {[%clk 0:03:01]} 6. Be3 {[%clk 0:02:59]}  e5 {[%clk 0:03:01]} 7. d5 {[%clk 0:02:58]}  Nfd7 {[%clk 0:03:00]} 8. h4 {[%clk 0:02:51]}  f5 {[%clk 0:03:00]} 9. h5 {[%clk 0:02:51]}  f4 {[%clk 0:02:57]} 10. Bd2 {[%clk 0:02:49]}  Nf6 {[%clk 0:02:54]} 11. hxg6 {[%clk 0:02:48]}  hxg6 {[%clk 0:02:54]} 12. Nf3 {[%clk 0:02:48]}  Na6 {[%clk 0:02:43]} 13. Qc2 {[%clk 0:02:37]}  c6 {[%clk 0:02:36]} 14. a3 {[%clk 0:02:23]}  cxd5 {[%clk 0:02:35]} 15. cxd5 {[%clk 0:02:21]}  Bd7 {[%clk 0:02:35]} 16. b4 {[%clk 0:02:20]}  Rc8 {[%clk 0:02:34]} 17. Qb3 {[%clk 0:01:56]}  Qb6 {[%clk 0:02:27]} 18. Ng5 {[%clk 0:01:50]}  Nc5 {[%clk 0:02:04]} 19. Qd1 {[%clk 0:01:37]}  f3 {[%clk 0:01:50]} 20. gxf3 {[%clk 0:01:33]}  Na6 {[%clk 0:01:50]} 21. Be3 {[%clk 0:01:27]}  Qd8 {[%clk 0:01:50]} 22. Qd2 {[%clk 0:01:25]}  Nh5 {[%clk 0:01:43]} 23. Ne6 {[%clk 0:01:23]}  Bxe6 {[%clk 0:01:37]} 24. dxe6 {[%clk 0:01:21]}  Nc7 {[%clk 0:01:35]} 25. Bc4 {[%clk 0:01:19]}  Qe7 {[%clk 0:01:31]} 26. Rc1 {[%clk 0:00:42]}  Kh7 {[%clk 0:01:26]} 27. Nd5 {[%clk 0:00:37]}  Nxd5 {[%clk 0:01:25]} 28. exd5 {[%clk 0:00:34]}  Kg8 {[%clk 0:01:09]} 29. Bd3 {[%clk 0:00:33]}  Rxc1+ {[%clk 0:01:02]} 30. Qxc1 {[%clk 0:00:32]}  Nf4 {[%clk 0:00:56]} 31. Bxf4 {[%clk 0:00:27]}  Rxf4 {[%clk 0:00:56]} 32. Bxg6 {[%clk 0:00:24]}  Qg5 {[%clk 0:00:41]} 33. Qc8+ {[%clk 0:00:20]}  Bf8 {[%clk 0:00:37]} 34. Be4 {[%clk 0:00:19]}  Qg2 {[%clk 0:00:27]} 35. Rh6 {[%clk 0:00:15]}  Rxe4+ {[%clk 0:00:26]} 36. fxe4 {[%clk 0:00:14]}  Qxe4+ {[%clk 0:00:26]} 37. Kf1 {[%clk 0:00:14]}  Qd3+ {[%clk 0:00:24]} 38. Kg2 {[%clk 0:00:14]}  Qxd5+ {[%clk 0:00:23]} 39. Kh2 {[%clk 0:00:13]}  Qf3 {[%clk 0:00:21]} 40. e7 {[%clk 0:00:10]}  Qxf2+ {[%clk 0:00:21]} 41. Kh1 {[%clk 0:00:10]}  Qf1+ {[%clk 0:00:21]} 42. Kh2 {[%clk 0:00:10]}  Qf2+ {[%clk 0:00:22]} 43. Kh1 {[%clk 0:00:10]}  Qf1+ {[%clk 0:00:22]} 44. Kh2 {[%clk 0:00:10]}  Qf2+ {[%clk 0:00:23]} 1/2-1/2


[Site "https://www.chess.com"]